Cogmind - Beta 13 X1 @@@ ROGUE MODE // 2024.02.13 @ 13:16:35 Player: maxwell Result: Smashed by cave-in Performance ------------- Evolutions (0) 0 Regions Visited (3) 600 Robots Destroyed (34) 170 Value Destroyed (921) 921 Prototype IDs (0) 0 Alien Tech Used (0) 0 Bonus (0) 0 TOTAL SCORE: 1691 Bonus ------- None Cogmind --------- Core Integrity 0/250 Matter 183/300 Energy 250/250 System Corruption 7% Temperature Cool (0) Movement Treading (480) Ox4 Location -10/Subcaves Parts ------- > --- POWER (1) -------- Ion Engine > --- PROPULSION (2) --- Light Treads > --- UTILITY (2) ------ Huge Storage Unit > --- WEAPON (2) ------- (None) > --- INVENTORY (25) --- Light Treads Large Matter Pod (150) Medium Laser Assault Rifle Assault Rifle Assault Rifle Assault Rifle Assault Rifle Assault Rifle Subdweller Machine Gun Heavy Battle Rifle Grenade Launcher Shrapnel Trap Piercing Trap Peak State ------------ > --- POWER ------------ Light Ion Engine > --- PROPULSION ------- Wheel Wheel > --- UTILITY ---------- Huge Storage Unit Subdweller Optics > --- WEAPON ----------- Assault Rifle Grenade Launcher > --- INVENTORY -------- Ion Engine Light Treads Light Treads Light Treads Light Treads Large Matter Pod Medium Laser Assault Rifle Assault Rifle Assault Rifle Assault Rifle Assault Rifle Assault Rifle Assault Rifle Assault Rifle Subdweller Machine Gun Grenade Launcher Grenade Launcher Shrapnel Trap [Rating: 10] Favorites ----------- Power Ion Engine Engine Ion Engine Propulsion Wheel Treads Light Treads Leg Aluminum Leg Wheel Wheel Utility Huge Storage Unit Device Subdweller Optics Storage Huge Storage Unit Processor Targeting Computer Weapon Assault Rifle Energy Gun Medium Laser Ballistic Gun Assault Rifle Launcher Grenade Launcher Build | -11 -10 -10 -10 ------- Run | Jun Mat Min Sub Slots Evolved . | . . . . Power . | . . . . Propulsion . | . . . . Utility . | . . . . Weapon . | . . . . Parts Attached 26 | . 9 5 12 Power 2 | . . 1 1 Engine 2 | . . 1 1 Core . | . . . . Reactor . | . . . . Propulsion 7 | . 4 . 3 Treads 5 | . 2 . 3 Leg . | . . . . Wheel 2 | . 2 . . Hover . | . . . . Flight . | . . . . Utility 4 | . 2 1 1 Device 1 | . . . 1 Storage 2 | . 1 1 . Processor 1 | . 1 . . Hackware . | . . . . Protection . | . . . . Artifact . | . . . . Weapon 13 | . 3 3 7 Energy Gun . | . . . . Energy Cannon . | . . . . Ballistic Gun 8 | . 2 3 3 Ballistic Cannon . | . . . . Launcher 5 | . 1 . 4 Special Weapon . | . . . . Impact Weapon . | . . . . Slashing Weapon . | . . . . Piercing Weapon . | . . . . Special Melee Weapon . | . . . . Unidentified Prototypes . | . . . . Parts Lost 12 | . 1 1 10 Power 2 | . . 1 1 Propulsion 4 | . . . 4 Utility 2 | . 1 . 1 Weapon 4 | . . . 4 Highest Loss Streak 3 | . 1 1 3 To Critical Strikes . | . . . . Average Slot Usage (%) 97 | . 97 99 95 Engine 13 | . 14 13 13 Treads 12 | . 20 . 17 Wheel 14 | . 6 28 9 Device 3 | . . . 10 Storage 19 | . 14 27 17 Processor 3 | . 11 . . Ballistic Gun 25 | . 27 28 19 Launcher 1 | . . . 4 Naked Turns . | . . . . Heaviest Build 92 | 14 88 92 92 Greatest Support 40 | 20 40 20 40 Greatest Overweight (x) 4 | . 4 4 4 Average Overweight (x) 2 | . . 4 3 Largest Inventory Capacity 25 | . 25 25 25 Average Capacity 20 | . 11 25 25 Most Carried 19 | . 19 19 19 Average Carried 13 | . 8 15 15 Final Capacity 25 | 8 25 25 25 Final Carried 19 | 6 19 15 14 Class Distribution -------------------- 100% | Mutant Dominant Class ---------------- Mutant | -10/Materials Mutant | -10/Mines Mutant | -10/Subcaves Resources | -11 -10 -10 -10 ----------- Run | Jun Mat Min Sub Matter Collected 1171 | 188 396 393 194 Remotely . | . . . . Salvage Created 1238 | . 602 505 131 Parts 67 | . 33 23 11 Haulers Intercepted 1 | . 1 . . Recyclers Shooed 2 | . 2 . . Parts Field Recycled . | . . . . Retrieved Matter . | . . . . Parts Self-Destructed 11 | . . . 11 Prevented . | . . . . Kills | -11 -10 -10 -10 ------- Run | Jun Mat Min Sub Combat Hostiles Destroyed 28 | . 9 12 7 Guns 21 | . 9 12 . AOE 7 | . . . 7 Classes Destroyed 9 | . 5 3 1 Worker 4 | . 2 2 . Builder 1 | . . 1 . Hauler 1 | . 1 . . Recycler 2 | . 1 1 . Watcher 1 | . 1 . . Swarmer 3 | . . 3 . Grunt 15 | . 9 6 . Subdweller 7 | . . . 7 Assembled 3 | . . 3 . Best Kill Streak 5 | . 4 5 2 Combat Bots Only 4 | . 4 3 2 Max Kills in Single Turn 2 | . 1 2 2 Gunslinging 1 | . . 1 . Exploded 2 | . . . 2 Melee . | . . . . Uniques/NPCs Destroyed . | . . . . Combat | -11 -10 -10 -10 -------- Run | Jun Mat Min Sub Damage Taken 1761 | . 257 389 1115 Core 319 | . 37 93 189 Absorbed by Shields . | . . . . Core Remaining (%) 100 | 100 . . . Volleys Fired 121 | . 59 41 21 Largest 2 | . 2 2 1 Hottest 40 | . 40 40 30 Shots Fired 217 | . 111 83 23 Gun 195 | . 110 83 2 Cannon . | . . . . Launcher 22 | . 1 . 21 Special . | . . . . Kinetic 195 | . 110 83 2 Thermal . | . . . . Explosive 22 | . 1 . 21 Electromagnetic . | . . . . Robot Hit Streak 21 | . 21 8 6 Robot Miss Streak 5 | . 4 5 1 Penetration Max . | . . . . Secondary Targets 3 | . 2 1 . Max Gunslinging Chain 1 | . 1 1 . Shots Hit Robots 134 | . 75 52 7 Core Hits 73 | . 33 26 14 Critical Kills . | . . . . Critical Parts Destroyed . | . . . . Critical Strikes . | . . . . Melee Attacks . | . . . . Impact . | . . . . Slashing . | . . . . Piercing . | . . . . Sneak Attacks . | . . . . Combat Hostiles . | . . . . Follow-up Attacks . | . . . . Damage Inflicted 2509 | . 833 710 966 Guns 1507 | . 797 710 . Cannons . | . . . . Explosions 966 | . . . 966 Melee . | . . . . Ramming 36 | . 36 . . Kinetic 1507 | . 797 710 . Thermal . | . . . . Explosive 966 | . . . 966 Electromagnetic . | . . . . Impact . | . . . . Slashing . | . . . . Piercing . | . . . . Highest Corruption 3 | . 3 3 3 Average Corruption 3 | . 3 3 3 Corruption Purged . | . . . . Corruption Blocked . | . . . . Effects 41 | . 4 19 18 Message Errors 12 | . 2 3 7 Matter Fused 9 | . . 7 2 Heat Flow Errors 6 | . . 3 3 Energy Discharges 2 | . . 2 . Parts Fused 1 | . . . 1 Data Loss (minor) 2 | . 1 . 1 Data Loss (major) 4 | . . 3 1 Misfires 4 | . 1 1 2 Alerts 1 | . . . 1 Overload Shots . | . . . . Overflow Damage 41 | . . . 41 Projectiles . | . . . . Explosions 41 | . . . 41 Melee . | . . . . Knockbacks . | . . . . Impact . | . . . . Kinetic . | . . . . Secondary . | . . . . Self-Inflicted Damage 317 | . 17 . 300 Shots 8 | . . . 8 Rammed 2 | . 2 . . Targets Rammed 2 | . 2 . . Kicked . | . . . . Crushed . | . . . . Highest Temperature 237 | . 30 220 237 Average Temperature 49 | . 12 51 103 Received Heat Transfer 546 | . 138 342 66 Siege Activations . | . . . . Robots Corrupted . | . . . . Combat Hostiles . | . . . . Parts Fried . | . . . . Impact Corruptions . | . . . . Robots Melted . | . . . . Combat Hostiles . | . . . . Parts Melted . | . . . . Heat Transferred . | . . . . Parts Sabotaged . | . . . . Parts Stolen . | . . . . Parts Stripped . | . . . . Power Chain Reactions . | . . . . Missiles Intercepted . | . . . . Alert | -11 -10 -10 -10 ------- Run | Jun Mat Min Sub Peak Influence 204 | . 204 129 . Initial 4 | . . 4 . Average 57 | . 68 47 . Maximum Alert Level 1 | . 1 . . Low Security (%) 97 | . 95 100 . Level 1 2 | . 4 . . Level 2 . | . . . . Level 3 . | . . . . Level 4 . | . . . . Level 5 . | . . . . High Security . | . . . . Max Security . | . . . . Squads Dispatched 1 | . 1 . . Investigation . | . . . . Extermination . | . . . . Reinforcement 1 | . 1 . . Assault . | . . . . Garrison . | . . . . Intercept . | . . . . Searches Triggered . | . . . . Construction Impeded . | . . . . Haulers Reinforced . | . . . . Active Scanning Responses . | . . . . Cargo Convoy Interrupts . | . . . . Stealth | -11 -10 -10 -10 --------- Run | Jun Mat Min Sub Distress Signals . | . . . . Communications Jammed . | . . . . Distress Signals . | . . . . Times Spotted 36 | . 19 10 7 Peak Tracking Total 3 | . 2 3 2 Tactical Retreats 1 | . . 1 . Traps | -11 -10 -10 -10 ------- Run | Jun Mat Min Sub Traps Triggered 2 | . . . 2 Indirectly . | . . . . Trap Hack Attempts . | . . . . Triggered . | . . . . Disarmed . | . . . . Reprogrammed . | . . . . Reused . | . . . . Traps Extracted . | . . . . Installed . | . . . . Triggered . | . . . . Most Traps Carried 2 | . . . 2 Machines | -11 -10 -10 -10 ---------- Run | Jun Mat Min Sub Machines Disabled 1 | . 1 . . Max in Single Turn 1 | . 1 . . Machines Repaired . | . . . . Machines Sabotaged . | . . . . Overloaded Fab Kills . | . . . . Hacking | -11 -10 -10 -10 --------- Run | Jun Mat Min Sub Machines Accessed 3 | . 2 . 1 Terminals 1 | . 1 . . Fabricators . | . . . . Repair Stations . | . . . . Recycling Units 1 | . 1 . . Scanalyzers . | . . . . Garrison Access . | . . . . Total Hacks 12 | . 8 . 4 Successful 7 | . 3 . 4 Failed 5 | . 5 . . Catastrophic . | . . . . Database Lockouts . | . . . . Manual 10 | . 8 . 2 Terminals 6 | . 6 . . Fabricators . | . . . . Repair Stations . | . . . . Recycling Units 2 | . 2 . . Scanalyzers . | . . . . Garrison Access . | . . . . Terminal Hacks 6 | . 2 . 4 Record 4 | . . . 4 Robot Analysis 2 | . 2 . . Fabricator Hacks . | . . . . Repair Station Hacks . | . . . . Recycling Unit Hacks . | . . . . Scanalyzer . | . . . . Garrison Access Hacks . | . . . . Unauthorized Hacks 1 | . 1 . . Terminals . | . . . . Fabricators . | . . . . Repair Stations . | . . . . Recycling Units 1 | . 1 . . Reject 1 | . 1 . . Scanalyzers . | . . . . Garrison Access . | . . . . Data Cores Recovered . | . . . . Used . | . . . . Hacking Detections 1 | . 1 . . Full Trace Events . | . . . . Feedback Events . | . . . . Feedback Blocked . | . . . . Robot Schematics Acquired . | . . . . Robots Built . | . . . . Authchips . | . . . . Time . | . . . . Total Robot Build Rating . | . . . . Part Schematics Acquired . | . . . . Parts Built . | . . . . Authchips . | . . . . Time . | . . . . Total Part Build Rating . | . . . . Parts Repaired . | . . . . Time . | . . . . Parts Recycled . | . . . . Recycled Matter . | . . . . Retrieved Matter . | . . . . Retrieved Components . | . . . . Parts Scanalyzed . | . . . . Part Schematics Acquired . | . . . . Parts Damaged . | . . . . Bothacking | -11 -10 -10 -10 ------------ Run | Jun Mat Min Sub Used RIF Installer . | . . . . Robots Hacked . | . . . . Non-combat . | . . . . Combat . | . . . . Robot Hacks Applied . | . . . . Relay Couplers Released . | . . . . Fabnet Peak Effective % . | . . . . Robots Rewired . | . . . . Allies Hacked . | . . . . Hacks Repelled . | . . . . Allies | -11 -10 -10 -10 -------- Run | Jun Mat Min Sub Total Allies . | . . . . Largest Group . | . . . . Highest-Rated Group . | . . . . Highest-Rated Ally . | . . . . Total Orders . | . . . . Ally Attacks . | . . . . Total Damage . | . . . . Kills . | . . . . Allies Corrupted . | . . . . Allies Melted . | . . . . Intel | -11 -10 -10 -10 ------- Run | Jun Mat Min Sub Robot Analysis Total 2 | . 2 . . Derelict Logs Recovered 1 | . . 1 . Drone Launches . | . . . . Drone Recoveries . | . . . . Exploration | -11 -10 -10 -10 ------------- Run | Jun Mat Min Sub Turns Passed 3277 | . 1079 1130 1068 Spaces Moved 1634 | 1 575 607 451 Core . | . . . . Treads 612 | . 414 . 198 Legs 40 | 1 39 . . Wheels 982 | . 122 607 253 Hover . | . . . . Flight . | . . . . Fastest Speed 120 | 120 120 140 140 Average Speed 167 | 120 153 140 222 Slowest Speed 480 | 120 160 140 480 Overloaded Moves . | . . . . Propulsion Burnouts . | . . . . Robots Hopped . | . . . . Cave-ins Triggered 1 | . . . 1 Exploration Rate (%) 54 | 2 87 99 31 Regions Visited 3 Branch Regions 2 Pre-discovered Areas 1 | . . . 1 Known Exits Taken . | . . . . Unknown Exits Taken 3 | 1 1 1 . Scrap Searched 4 | . . 2 2 Spaces Dug 8 | . 8 . . Terrain Destroyed 119 | . 8 . 111 Melee . | . . . . Projectile . | . . . . AOE 119 | . 8 . 111 Terrain Rammed . | . . . . Walls Destroyed . | . . . . Machines Disabled . | . . . . Actions | -11 -10 -10 -10 --------- Run | Jun Mat Min Sub Total 1974 | . 674 808 492 Wait 159 | . 6 153 . Move 1631 | . 574 606 451 Hop . | . . . . Pick Up 23 | . 18 . 5 Fast Attach 3 | . 1 1 1 Attach 16 | . 4 4 8 Detach 2 | . . . 2 Swap 7 | . 4 . 3 Drop 10 | . 6 3 1 Fire 121 | . 59 41 21 Melee . | . . . . Ram 1 | . 1 . . Kick . | . . . . Crush 1 | . 1 . . Escape Stasis . | . . . . Rewire . | . . . . Trap . | . . . . Miscellaneous . | . . . . Route ------- -11/Junkyard -10/Materials (discovered 4 exits: [*Mat x3] / [*Min]) -10/Mines (discovered 3 exits: [*Mat x2] / *Sub) -10/Subcaves History --------- Turn | Location | Event 1 | -11/Junkyard | Discovered new exit (range 0) 1 | -11/Junkyard | Entered Materials 329 | -10/Materials | Build established: Mutant 362 | -10/Materials | Discovered new exit (range 6) 482 | -10/Materials | Discovered new exit (range 16) 640 | -10/Materials | Discovered new exit (range 12) 763 | -10/Materials | Discovered new exit (range 15) 1080 | -10/Materials | Entered Mines 1103 | -10/Mines | Discovered new exit (range 10) 1153 | -10/Mines | Met a Derelict bent on vengeance 1403 | -10/Mines | Learned Materials non-interactive machine intel 1414 | -10/Mines | Discovered new exit (range 5) 1574 | -10/Mines | Excavation squad dispatched 1574 | -10/Mines | A large section of the Mines collapsed 1845 | -10/Mines | Core integrity fell below 50% 1944 | -10/Mines | Deemed a non-threat by the Exiles lab entrance 2202 | -10/Mines | Discovered new exit (range 5) 2210 | -10/Mines | Entered Subcaves 2241 | -10/Subcaves | Visited Clippyterm 2245 | -10/Subcaves | Learned 40 Factory zone layouts 2245 | -10/Subcaves | Learned Factory stockpile data 2245 | -10/Subcaves | Learned location of Deep Caves (-6) 2262 | -10/Subcaves | A swath of the cavern ceiling suddenly collapsed 2345 | -10/Subcaves | Shifting Twisted Machinery released Shrapnel Trap 2372 | -10/Subcaves | Shifting Twisted Machinery released Sub. Monowheel 2633 | -10/Subcaves | Lost 3 parts (2n1w) 3137 | -10/Subcaves | Ambushed by Subdweller buried in earth 3177 | -10/Subcaves | Lost 3 parts (1p1n1w) 3222 | -10/Subcaves | Ambushed by Subdweller buried in earth 3279 | -10/Subcaves | Crushed by falling debris 3279 | -10/Subcaves | Smashed by cave-in Last Messages --------------- 03183_ System corrupted: Matter fused (-8). 03183_ The unstable cave ceiling collapses. 03223_ V2-34M(R): "ARGHSUB!" 03223_ Lgt. Treads destroyed. 03223_ Assault Rifle destroyed. 03224_ The unstable cave ceiling collapses. 03224_ V2-34M(R) destroyed. 03226_ N7-HCC(R) destroyed. 03227_ System corrupted: Substantial component data lost. 03235_ The unstable cave ceiling collapses. 03255_ Scrap Shield Fragment crushed. 03256_ The unstable cave ceiling collapses. 03276_ QV9<7 I02G 5R|UBQ12=JC6B4YJ2NAPL 03276_ Acquired 15 matter. 03279_ The unstable cave ceiling collapses. 03279_ Crushed by falling debris. 03279_ Sub. Optics destroyed. 03279_ System corrupted by crushing effect (+3). 03279_ Grenade Launcher destroyed. 03279_ System corrupted by crushing effect (+1). Map ----- +----------------------------------------------------+ | ????????????????????????????????????????????? | | ????????????????????????????????????????????? | | ????????????????????????????????????????????? | | ????????????????????????????????????????????? | | ????????????????????????????????????????????? | | ????????????????????????????????????????????? | | ????????????????????????????????????????????? | | ????????????????????????????????????????????? | | ????????????????????????????????????????????? | | ????????????????????????????????????????????? | | ????????????????????????????????????????????? | | ????????????????????????????????????????????? | | ????????????????????????????????????????????? | | ????????????????????????????????????????????? | | ????????????????????????????????????????????? | | ???????????????????????"""??????????????????? | | ??????????????????????"" ?????????????????? | | ??????????????????????" ?????????????????? | | ??????????????????????" ??????????????????? | | ??????????????????????"" #??????????????????? | | ??????????????????????#""#??????????????????? | | ????????????????????###""####???????????????? | | ???????????????????## #"" ##??????????????? | | ????????????????##### #"" #??????????????? | | ???????????##??## # &# #??????????????? | | ?????????###"??# ## # &&@& #???????????????? | | ????????## ?## ! #???????????????? | | ????????# ## && #???????????????? | | ????????# ""## & # ###???????????????? | | ??????????# ## # ## #????????????????? | | ???????????# # # #????????????????? | | ???????????# " "## #????????????????? | | ???????????## " "# ##????????????????? | | ????????????# " "## #?????????????????? | | ????????????# " "" ##????????????????? | | ???????????## ;;"" " #????????????????? | | ??????????## ;;# ## ##????????????????? | | ????????### ######## ##?????????????????? | | ????????## %#??????# ##??????????????????? | | ????????# = #??????###???????????????????? | | ###?????# & ## #?????????????????????????? | | ""#?????## *% ## #??????????????????????? | | #?????## = #??????????????????????? | | ##?###### ### #??????????????????????? | | ##### #### ????????????????? | | ?## ### #??????????????? | | ?# #?# ##???????????????? | | ?## #?? ##????????????????? | | ??## #?? #?????????????????? | | #??## #??? #?????????????????? | +----------------------------------------------------+ Best States ------------- Heat Dissipation 25 Energy Generation 10 Energy Capacity 250 Matter Stores 450 Matter Capacity 450 Sight Range 21 Terrain Scan Density 10 Evasion (%) 55 Targeting Accuracy 5 Recoil Reduction 2 Item Schematics ----------------- None Robot Schematics ------------------ None Fabricated ------------ Nothing Alien Tech Used ----------------- None Achievements -------------- None Challenges ------------ None Game ------ Seed ZhirovCommAutogun Manual? 0 Play Time 00:13:31 Cumulative 387.0 hours Start 2024.02.13 @ 06:38:21 End 2024.02.13 @ 13:16:35 Sessions 2 Manual Loads 0 Difficulty Rogue Special Mode None Game No. 566 Rogue 539 Adventurer 4 Explorer 23 Win Type - Total 22 Types 14/0/4/2/1/0/0/1/0 Lore% 82 Gallery% 92 Achievement% 83 Wizard Run 0 Options --------- ASCII 0 Keyboard 1 Movement Numpad Keybinds 0 Fullscreen 2 Font 18/SmallcapsGlow Map View 76x50 Tactical HUD 1 Map Filters NONE Filters NONE Steam 1 RUN: dbabe7b9-5bc5-4fd0-8976-ae77541ad378